[Event "Polish University-ch Teams 2024"]
[Site "Lublin"]
[Date "2024.02.24"]
[Round "2.2"]
[White "Kowalski, Igor"]
[Black "Golda, Sebastian"]
[Result "1-0"]
[ECO "B08"]
[WhiteElo "2372"]
[BlackElo "2107"]
[Annotator "TA"]
[PlyCount "83"]
[EventDate "2024.02.22"]
[EventType "team-tourn"]
[EventCountry "POL"]
[SourceTitle "playchess.com"]
[Source "ChessBase"]
[SourceQuality "1"]
[TimeControl "900+5"]

{[%evp 12,83,41,22,25,28,34,27,43,27,21,27,81,66,55,56,152,-21,0,0,34,14,73,-27,53,51,64,72,60,24,76,45,124,41,133,126,111,74,95,72,150,150,147,134,195,202,203,46,64,64,189,190,179,181,177,156,320,338,316,234,303,291,291,288,367,364,334,327,306,253,341,328,504,482]} 1. d4 {[%emt 0:00:02]} Nf6 {[%emt 0:00:01]} 2. Nf3 {[%emt 0:00:01]} g6 {[%emt 0:00:01]} 3. Nc3 {[%emt 0:00:02]} Bg7 {[%emt 0:00:12]} 4. e4 {[%emt 0:00:02]} d6 {[%emt 0:00:03]} 5. Bc4 {[%emt 0:00:02]} c6 {[%emt 0:01:15]} 6. Bb3 {[%emt 0:00:04]} O-O {[%emt 0:00:13]} 7. Qe2 {[%emt 0:00:12]} a5 {[%emt 0:01:28]} 8. a4 {[%emt 0:00:17]} Na6 {[%emt 0:00:02]} 9. Bg5 {[%emt 0:00:08]} Qc7 {[%emt 0:02:03] White has an edge.} 10. e5 {[%emt 0:00:27]} dxe5 {[%emt 0:00:51]} 11. Nxe5 {[%emt 0:00:03]} Nb4 {[%emt 0:05:20]} (11... Qd6 $11 {remains equal.}) 12. h4 $16 {[%emt 0:00:47][%cal Oh4h5]} Nfd5 {[%emt 0:02:00] [#] Strongly threatening ...f6.} 13. Nxd5 {[%emt 0:00:05]} (13. h5 {feels hotter.} f6 14. hxg6 hxg6 15. Nxg6 fxg5 16. Nxe7+ Kf7 17. Nexd5 cxd5 18. Nxd5 Nxd5 19. Bxd5+ Kg6 20. Be4+) 13... Nxd5 {[%emt 0:00:53]} 14. c4 $2 {[%emt 0:05:51] White is much more active.} (14. h5 $16) 14... Nb4 {[%emt 0:00:24]} 15. Bf4 {[%emt 0:00:20][%cal Oe5g6] Threatens to win with Nxg6!} Qd8 {[%emt 0:00:30]} 16. O-O-O {[%emt 0:03:42]} f6 {[%emt 0:00:29]} (16... b5 $1 $11) 17. Nf3 {[%emt 0:01:14]} (17. c5+ $16 Nd5 18. Nd3) 17... Bf5 {[%emt 0:00:02]} (17... h5 $11) 18. h5 $36 {[%emt 0:00:19][%cal Bh4h5,Bh5h6][%mdl 2080] White has good play.} g5 $1 {[%emt 0:00:01]} 19. h6 {[%emt 0:00:03]} Bh8 {[%emt 0:00:02]} 20. Bg3 {[%emt 0:00:50]} Qd7 {[%emt 0:00:03]} (20... c5 $11 {keeps the balance.}) 21. Rhe1 {[%emt 0:00:18]} Rae8 {[%emt 0:00:03]} (21... Rfe8 $14) 22. Qe3 {[%emt 0:00:30]} (22. c5+ $16 Rf7 23. Nh2 (23. Bxf7+ Kxf7 24. Qc4+ Kg6 $11)) 22... Bg6 {[%emt 0:00:25]} (22... e6 $14) 23. c5+ $16 {[%emt 0:01:06]} Nd5 {[%emt 0:00:20]} 24. Nd2 {[%emt 0:00:16]} Bf7 {[%emt 0:00:07]} 25. Qf3 {[%emt 0:00:11]} Nb4 {[%emt 0:00:13]} (25... e5 $142) 26. Bxf7+ {[%emt 0:00:05]} Rxf7 {[%emt 0:00:01]} 27. Qb3 {[%emt 0:00:06]} Kf8 {[%emt 0:00:07]} (27... Qd5 $16) 28. Nc4 $18 {[%emt 0:00:03]} Qd5 {[%emt 0:00:05]} 29. Nxa5 $2 {[%emt 0:00:05]} ({White should try} 29. Bc7 $18) 29... Qxb3 $14 {[%emt 0:00:02]} 30. Nxb3 {[%emt 0:00:01][%cal Ba5b3,Bb3d4,Bd4f3,Bf3e5,Be5d7][%mdl 32]} e5 {[%emt 0:00:06]} (30... Ra8 $14) 31. dxe5 $18 {[%emt 0:00:04]} fxe5 {[%emt 0:00:01]} 32. Re4 {[%emt 0:00:02]} Nd5 {[%emt 0:00:03]} 33. Rde1 {[%emt 0:00:01]} Rf5 $2 {[%emt 0:00:14] [#] This move loses the game for Black.} (33... Re6 $16 34. Nd4 (34. Bxe5 Bxe5 35. Rxe5 Rxe5 $16) 34... Rxh6) 34. Nd4 $1 {[%emt 0:00:04][%mdl 512]} Rf7 {[%emt 0:00:06]} 35. Nf3 {[%emt 0:00:08]} Nf4 {[%emt 0:00:08]} 36. Bxf4 {[%emt 0:00:04]} ({Resist} 36. Nxg5 $6 Nd3+ 37. Kb1 Nxe1) 36... gxf4 {[%emt 0:00:02]} 37. Nxe5 {[%emt 0:00:07]} Rfe7 {[%emt 0:00:07][%cal Rh8e5]} 38. Nd7+ {[%emt 0:00:05]} Kf7 {[%emt 0:00:12]} 39. Rxf4+ {[%emt 0:00:05]} Kg6 {[%emt 0:00:00]} 40. Rd1 {[%emt 0:00:10]} Re1 {[%emt 0:00:00]} 41. Rb4 {[%emt 0:00:12]} Rxd1+ {[%emt 0:00:01]} (41... R1e4 $142 42. Rxb7 (42. Rd6+ Kf5 $16) 42... Rxa4 43. Rd6+ Kf5 44. Rxc6 Ra1+ 45. Kd2 Rf1) 42. Kxd1 {[%emt 0:00:01] Weighted Error Value: White=0.33/Black=0.48.  Loses game:     	---       	Black=1      Mistake:       	White=4     	Black=10     Inaccurate:     	White=3     	Black=3      OK:         	White=11    	Black=4      Best:        	White=2     	Black=5      Strong:       	---       	Black=1} 1-0

[Event "Polish University-ch Teams 2024"]
[Site "Lublin"]
[Date "2024.02.24"]
[Round "2.3"]
[White "Kulesza, Andrzej"]
[Black "Molenda, Marcin"]
[Result "1-0"]
[ECO "B42"]
[WhiteElo "2076"]
[BlackElo "2377"]
[Annotator "RC"]
[PlyCount "101"]
[EventDate "2024.02.22"]
[EventType "team-tourn"]
[EventCountry "POL"]
[SourceTitle "playchess.com"]
[Source "ChessBase"]
[SourceQuality "1"]
[TimeControl "900+5"]

1. e4 {[%emt 0:00:05]} c5 {[%emt 0:00:02]} 2. Nf3 {[%emt 0:00:03]} e6 {[%emt 0:00:02]} 3. d4 {[%emt 0:00:02]} cxd4 {[%emt 0:00:01]} 4. Nxd4 {[%emt 0:00:01]} a6 {[%emt 0:00:01]} 5. Bd3 {[%emt 0:00:03]} Qc7 {[%emt 0:00:07]} 6. O-O {[%emt 0:00:12]} Nf6 {[%emt 0:00:01]} 7. Qe2 {[%emt 0:00:11]} d6 {[%emt 0:00:02]} 8. c4 {[%emt 0:00:15]} Nbd7 {[%emt 0:00:02]} 9. f4 {[%emt 0:00:07]} Be7 {[%emt 0:00:21]} 10. Nc3 {[%emt 0:00:05]} O-O {[%emt 0:00:03]} 11. Kh1 {[%emt 0:00:07]} Re8 {[%emt 0:00:06]} 12. Bd2 {[%emt 0:00:40]} b6 {[%emt 0:00:02]} 13. Rae1 {[%emt 0:00:02]} e5 {[%emt 0:00:59]} 14. Nf3 {[%emt 0:00:54]} Bb7 {[%emt 0:02:32]} 15. f5 {[%emt 0:01:33]} Rac8 {[%emt 0:01:08]} 16. b3 {[%emt 0:00:13]} Qb8 {[%emt 0:00:43]} 17. Rg1 {[%emt 0:00:18]} Nc5 {[%emt 0:00:18]} 18. Bb1 {[%emt 0:00:52]} b5 {[%emt 0:00:06]} 19. g4 {[%emt 0:00:34]} bxc4 {[%emt 0:00:53]} 20. bxc4 {[%emt 0:00:02]} Bf8 {[%emt 0:01:00]} 21. g5 {[%emt 0:00:10]} Nh5 {[%emt 0:00:28]} 22. g6 {[%emt 0:01:02]} fxg6 {[%emt 0:01:20]} 23. fxg6 {[%emt 0:00:02]} h6 {[%emt 0:00:09]} 24. Nh4 {[%emt 0:01:21]} Nf4 {[%emt 0:00:25]} 25. Qf3 {[%emt 0:00:40]} Nce6 {[%emt 0:00:20]} 26. Nd5 {[%emt 0:00:51]} Rxc4 {[%emt 0:01:56]} 27. Nxf4 {[%emt 0:01:06]} exf4 {[%emt 0:00:09]} 28. Ng2 {[%emt 0:03:16]} Ng5 {[%emt 0:02:12]} 29. Qb3 {[%emt 0:01:05]} d5 {[%emt 0:00:00]} 30. Bxf4 {[%emt 0:00:09]} Rb4 {[%emt 0:01:00]} 31. Bxb8 {[%emt 0:01:13]} Rxb3 {[%emt 0:00:01]} 32. axb3 {[%emt 0:00:01]} Rxb8 {[%emt 0:00:03]} 33. Rgf1 {[%emt 0:00:08]} dxe4 {[%emt 0:00:01]} 34. Ne3 {[%emt 0:00:01]} Nf3 {[%emt 0:00:06]} 35. Re2 {[%emt 0:00:15]} Bc5 {[%emt 0:00:07]} 36. Rc1 {[%emt 0:00:09]} Bd4 {[%emt 0:00:09]} 37. Rc4 {[%emt 0:00:07]} Rd8 {[%emt 0:00:11]} 38. Kg2 {[%emt 0:00:08]} Rd6 {[%emt 0:00:02]} 39. Nf5 {[%emt 0:00:06]} Rxg6+ {[%emt 0:00:00]} 40. Ng3 {[%emt 0:00:01]} Rg4 {[%emt 0:00:40]} 41. Bxe4 {[%emt 0:00:02]} Bxe4 {[%emt 0:00:29]} 42. Rxe4 {[%emt 0:00:01]} Rxe4 {[%emt 0:00:06]} 43. Nxe4 {[%emt 0:00:01]} Nh4+ {[%emt 0:00:05]} 44. Kh3 {[%emt 0:00:03]} Nf5 {[%emt 0:00:01]} 45. Ng3 {[%emt 0:00:05]} Nxg3 {[%emt 0:00:10]} 46. Rxd4 {[%emt 0:00:04]} Ne2 {[%emt 0:00:03]} 47. Ra4 {[%emt 0:00:04]} Nc1 {[%emt 0:00:03]} 48. Rb4 {[%emt 0:00:10]} Nd3 {[%emt 0:00:06]} 49. Rb6 {[%emt 0:00:01]} Nc5 {[%emt 0:00:03]} 50. Kg4 {[%emt 0:00:07]} a5 {[%emt 0:00:02]} 51. Rb5 {[%emt 0:00:04]} 1-0

[Event "Polish University-ch Teams 2024"]
[Site "Lublin"]
[Date "2024.02.24"]
[Round "2.4"]
[White "Chylewski, Patryk"]
[Black "Namyslak, Piotr"]
[Result "1/2-1/2"]
[ECO "B01"]
[WhiteElo "2285"]
[BlackElo "1763"]
[Annotator "TA"]
[PlyCount "92"]
[EventDate "2024.02.22"]
[EventType "team-tourn"]
[EventCountry "POL"]
[SourceTitle "playchess.com"]
[Source "ChessBase"]
[SourceQuality "1"]
[TimeControl "900+5"]

{[%evp 14,92,43,15,12,13,16,10,22,1,4,6,5,0,8,0,19,14,17,9,18,12,29,18,14,8,14,0,10,2,14,0,0,0,0,0,0,0,0,0,0,0,0,0,0,0,1,-10,22,20,25,13,21,14,10,9,46,43,38,0,25,0,0,0,0,0,0,0,0,0,0,0,0,0,0,0,0,0,0,0,0]} 1. e4 {[%emt 0:00:03]} d5 {[%emt 0:00:02]} 2. exd5 {[%emt 0:00:02]} Qxd5 {[%emt 0:00:01]} 3. Nc3 {[%emt 0:00:02][%cal Bb1c3,Bc3e2,Be2g3][%mdl 32]} Qa5 {[%emt 0:00:02]} 4. d4 {[%emt 0:00:06]} c6 {[%emt 0:00:01]} 5. Nf3 {[%emt 0:00:19]} Nf6 {[%emt 0:00:10]} 6. Bc4 {[%emt 0:00:44]} Bf5 {[%emt 0:00:12]} 7. O-O {[%emt 0:00:03]} e6 {[%emt 0:00:10]} 8. Ne2 {[%emt 0:00:38]} Bd6 {[%emt 0:00:29]} 9. Ng3 {[%emt 0:00:11]} Bg6 {[%emt 0:00:11]} 10. c3 {[%emt 0:00:44]} Nbd7 {[%emt 0:00:20]} 11. Re1 {[%emt 0:00:38][%cal Oc4e6]} O-O {[%emt 0:00:16]} 12. Nh4 {[%emt 0:00:09]} Qc7 {[%emt 0:00:50]} 13. Nxg6 {[%emt 0:00:22]} hxg6 {[%emt 0:00:03]} 14. Bg5 {[%emt 0:00:52]} Bf4 {[%emt 0:01:55]} 15. Bxf4 {[%emt 0:00:59]} Qxf4 {[%emt 0:00:03]} 16. Qc2 {[%emt 0:00:39]} Rfd8 {[%emt 0:01:09]} 17. Rad1 {[%emt 0:00:07]} c5 {[%emt 0:02:01]} 18. Be2 {[%emt 0:00:30]} (18. Ne4 {sieht schärfer aus.} Ng4 19. g3 Qf5 20. Qe2) 18... Qc7 {[%emt 0:00:14]} 19. Bf3 {[%emt 0:00:14]} Rac8 {[%emt 0:00:11]} 20. Qe2 {[%emt 0:00:51]} a6 {[%emt 0:02:14]} 21. dxc5 {[%emt 0:01:59]} Nxc5 {[%emt 0:00:09]} 22. h3 {[%emt 0:00:11]} b5 {[%emt 0:00:29]} 23. Rxd8+ {[%emt 0:01:12]} Rxd8 {[%emt 0:00:03]} 24. Rd1 {[%emt 0:00:02]} Na4 {[%emt 0:01:27] ...Rxd1+ wäre nun fies.} 25. Rxd8+ {[%emt 0:00:21]} Qxd8 {[%emt 0:00:02]} 26. Nf1 {[%emt 0:00:18]} Qd6 {[%emt 0:00:30]} 27. Ne3 {[%emt 0:00:17]} Nd7 {[%emt 0:00:58]} 28. Qd1 {[%emt 0:00:31]} Qxd1+ {[%emt 0:00:21]} 29. Nxd1 $11 {[%emt 0:00:03][%mdl 4096] Endspiel. KBN-KNN} Ne5 {[%emt 0:00:16]} 30. Be2 {[%emt 0:00:06]} Kf8 {[%emt 0:00:27]} 31. f4 {[%emt 0:00:22]} Nd7 {[%emt 0:00:15]} 32. Kf2 {[%emt 0:00:03]} Ke7 {[%emt 0:00:05]} 33. Bf3 {[%emt 0:00:33]} Kd6 {[%emt 0:00:07]} 34. Ke3 {[%emt 0:00:12]} Ndb6 {[%emt 0:00:07]} 35. b3 {[%emt 0:00:14] Gegen Nc4+ gerichtet.} Nc5 {[%emt 0:00:02]} 36. g3 {[%emt 0:00:19]} a5 {[%emt 0:00:29]} 37. Kd2 {[%emt 0:00:31]} Nd5 {[%emt 0:00:35] Die Stellung ist ausgeglichen.} 38. Nf2 {[%emt 0:00:30]} b4 {[%emt 0:00:35]} 39. Bxd5 {[%emt 0:00:11]} Kxd5 {[%emt 0:00:25]} 40. cxb4 {[%emt 0:00:02]} axb4 {[%emt 0:00:01] KN-KN} 41. Ke3 {[%emt 0:00:03] Es drohte Ne4} f6 {[%emt 0:00:07]} 42. g4 {[%emt 0:00:37]} g5 {[%emt 0:00:04]} 43. fxg5 {[%emt 0:00:30]} fxg5 {[%emt 0:00:00]} 44. Nd1 $1 {[%emt 0:00:12]} Ne4 {[%emt 0:00:12]} 45. Kd3 {[%emt 0:00:02] [#] Und Ne3+ würde nun gewinnen.} Nc5+ {[%emt 0:00:02]} 46. Ke3 {[%emt 0:00:02]} Ne4 {[%emt 0:00:00] Gewichteter Fehlerwert: Weiß=0.05 (makellos) /Schwarz=0.05 (makellos) .  Ungenau:       	Weiß=1     	Schwarz=2     OK:         	Weiß=15    	Schwarz=16    Bester:       	Weiß=1     	---        Stark:        	Weiß=1     	---} 1/2-1/2

[Event "Polish University-ch Teams 2024"]
[Site "Lublin"]
[Date "2024.02.24"]
[Round "2.5"]
[White "Panczuk, Grzegorz"]
[Black "Jarzebowski, Kacper"]
[Result "0-1"]
[ECO "E94"]
[WhiteElo "1736"]
[BlackElo "2135"]
[Annotator "NA RC"]
[PlyCount "74"]
[EventDate "2024.02.22"]
[EventType "team-tourn"]
[EventCountry "POL"]
[SourceTitle "playchess.com"]
[Source "ChessBase"]
[SourceQuality "1"]
[TimeControl "900+5"]

1. d4 {[%emt 0:00:03]} Nf6 {[%emt 0:00:01]} 2. c4 {[%emt 0:00:02]} g6 {[%emt 0:00:03]} 3. f3 {[%emt 0:00:04]} Bg7 {[%emt 0:00:06]} 4. e4 {[%emt 0:00:02]} d6 {[%emt 0:00:02]} 5. Nc3 {[%emt 0:00:02]} O-O {[%emt 0:00:02]} 6. Be3 {[%emt 0:00:02]} e5 {[%emt 0:00:06]} 7. Nge2 {[%emt 0:00:02]} exd4 {[%emt 0:00:04]} 8. Nxd4 {[%emt 0:00:03]} Nc6 {[%emt 0:00:02]} 9. Be2 {[%emt 0:00:43]} Bd7 {[%emt 0:00:22]} 10. Qd2 {[%emt 0:00:59]} Re8 {[%emt 0:00:04]} 11. O-O {[%emt 0:00:05]} a5 {[%emt 0:00:12]} 12. b3 {[%emt 0:01:05]} Nxd4 {[%emt 0:00:14]} 13. Bxd4 {[%emt 0:00:04]} Bc6 {[%emt 0:00:01]} 14. Rac1 {[%emt 0:01:52]} Nd7 {[%emt 0:00:11]} 15. Bxg7 {[%emt 0:00:31]} Kxg7 {[%emt 0:00:02]} 16. Nd5 {[%emt 0:00:01]} Bxd5 {[%emt 0:00:17]} 17. cxd5 {[%emt 0:00:33]} Nc5 {[%emt 0:00:01]} 18. Bd3 {[%emt 0:01:20]} Qf6 {[%emt 0:00:04]} 19. Bb1 {[%emt 0:00:12]} h5 {[%emt 0:00:16]} 20. f4 {[%emt 0:01:15]} Nxe4 {[%emt 0:00:36]} 21. Bxe4 {[%emt 0:00:04]} Rxe4 {[%emt 0:00:09]} 22. Rxc7 {[%emt 0:00:13]} a4 {[%emt 0:01:04]} 23. f5 {[%emt 0:01:03]} g5 {[%emt 0:00:24]} 24. Kh1 {[%emt 0:02:05]} Rd4 {[%emt 0:01:37]} 25. Qe2 {[%emt 0:00:27]} Rxd5 {[%emt 0:00:14]} 26. Qxh5 {[%emt 0:00:20]} axb3 {[%emt 0:02:21]} 27. axb3 {[%emt 0:00:19]} Rxf5 {[%emt 0:00:24]} 28. Rg1 {[%emt 0:00:13]} Rh8 {[%emt 0:04:06]} 29. Qg4 {[%emt 0:01:19]} Rf4 {[%emt 0:00:06]} 30. Qg3 {[%emt 0:00:46]} Qe5 {[%emt 0:01:13]} 31. h3 {[%emt 0:00:55]} b5 {[%emt 0:00:04]} 32. Re1 {[%emt 0:00:11]} Rf1+ {[%emt 0:00:58]} 33. Rxf1 {[%emt 0:00:07]} Qxg3 {[%emt 0:00:05]} 34. Rcxf7+ {[%emt 0:00:24]} Kg6 {[%emt 0:00:08]} 35. R7f6+ {[%emt 0:00:15]} Kh5 {[%emt 0:00:13]} 36. R6f3 {[%emt 0:00:06]} Qe5 {[%emt 0:00:08]} 37. h4 {[%emt 0:00:16]} Kg6 {[%emt 0:00:09]} 0-1

[Event "Polish University-ch Teams 2024"]
[Site "Lublin"]
[Date "2024.02.24"]
[Round "2.6"]
[White "Antolak, Julia"]
[Black "Ligeza, Aleksandra"]
[Result "1-0"]
[ECO "B32"]
[WhiteElo "2309"]
[BlackElo "1170"]
[Annotator "TA"]
[PlyCount "67"]
[EventDate "2024.02.22"]
[EventType "team-tourn"]
[EventCountry "POL"]
[SourceTitle "playchess.com"]
[Source "ChessBase"]
[SourceQuality "1"]
[TimeControl "900+5"]

{[%evp 10,66,19,0,0,0,37,31,34,34,29,0,7,7,9,-9,-16,-25,-22,-21,0,-10,13,-52,-32,-25,0,0,0,0,0,0,0,-6,16,-2,14,15,40,0,0,0,1668,1733,1643,1647,2047,2018,2018,1925,1987,1822,1764,1650,29997,29998,29998,29999,29999]} 1. e4 {[%emt 0:00:03]} c5 {[%emt 0:00:03]} 2. Nf3 {[%emt 0:00:03][%cal Bg1f3,Bf3d4,Bd4b5,Bb5c3,Bc3d5][%mdl 32]} Nc6 {[%emt 0:00:02]} 3. d4 {[%emt 0:00:02]} cxd4 {[%emt 0:00:03]} 4. Nxd4 {[%emt 0:00:03]} e5 {[%emt 0:00:03]} 5. Nb5 {[%emt 0:00:02]} d6 {[%emt 0:00:03]} 6. a4 {[%emt 0:00:07]} a6 {[%emt 0:00:09]} 7. N5c3 {[%emt 0:00:02]} Be7 {[%emt 0:00:17]} 8. Nd5 {[%emt 0:00:03]} Nf6 {[%emt 0:00:09] White is slightly better.} 9. Nbc3 {[%emt 0:00:01]} Be6 {[%emt 0:00:17]} 10. Be2 {[%emt 0:00:39]} Bxd5 {[%emt 0:00:50]} 11. exd5 {[%emt 0:00:02]} Nd4 {[%emt 0:00:19]} 12. Be3 {[%emt 0:00:07]} Nxe2 {[%emt 0:00:05]} 13. Qxe2 {[%emt 0:00:02]} O-O {[%emt 0:00:09]} 14. O-O {[%emt 0:00:04]} Nd7 {[%emt 0:00:15]} 15. a5 {[%emt 0:00:27]} Bg5 {[%emt 0:00:34]} 16. b4 {[%emt 0:00:24]} (16. Ne4 $11 Be7 17. Nd2) 16... Bxe3 {[%emt 0:00:10]} 17. fxe3 {[%emt 0:00:23]} b6 {[%emt 0:00:16]} 18. Ne4 {[%emt 0:00:30][%cal Bc3e4,Be4g5,Bg5e6][%mdl 32]} bxa5 {[%emt 0:00:32]} 19. Rxa5 {[%emt 0:00:21]} (19. Nxd6 axb4 20. Qc4 Nf6 21. Qxb4 Nxd5 $17) 19... Qb6 {[%emt 0:00:38]} 20. c3 $36 {[%emt 0:00:13][%mdl 2048] White has some pressure.} f5 {[%emt 0:00:54]} 21. Ng5 {[%emt 0:00:27]} f4 {[%emt 0:00:32][%cal Od7f6]} 22. Ne6 {[%emt 0:00:06]} Rf7 {[%emt 0:00:13]} (22... Rfc8 $5) 23. Rf3 {[%emt 0:00:51]} Nf6 {[%emt 0:01:24]} 24. Kh1 {[%emt 0:01:30]} fxe3 {[%emt 0:01:22]} 25. h3 {[%emt 0:00:46]} (25. Qxe3 $2 Qxe3 26. Rxe3 Nxd5 $19) (25. Rxe3 Ng4 26. Rf3 Nf2+ 27. Qxf2 Qxf2 28. Rxf2 Rxf2 $19) 25... Nd7 $2 {[%emt 0:01:02][%mdl 8192] [#]} (25... Ne4 $11) 26. Rxf7 $1 $18 {[%emt 0:00:50]} (26. Qxe3 Qxe3 27. Rxe3 Rf1+ 28. Kh2 Nb6 $16) ({Less strong is} 26. Rxe3 Nf6 27. Kh2 Qb8 $16) 26... Kxf7 {[%emt 0:00:06]} 27. Qh5+ {[%emt 0:00:01]} Kf6 {[%emt 0:01:35]} 28. Qg5+ {[%emt 0:00:22]} Kf7 {[%emt 0:00:08]} 29. Qxg7+ {[%emt 0:00:04]} Ke8 {[%emt 0:00:04][%cal Bf7e8,Be8e7,Be7f6,Bf6f5,Bf5e4][%mdl 32]} 30. Qg8+ {[%emt 0:00:49]} Ke7 {[%emt 0:00:07]} 31. Qxh7+ {[%emt 0:00:02]} Kf6 {[%emt 0:00:33]} 32. Qg7+ {[%emt 0:00:31] White mates.} Kf5 {[%emt 0:00:04]} 33. Qg5+ {[%emt 0:00:51]} Ke4 {[%emt 0:00:10]} 34. Qg6# {[%emt 0:02:32] Weighted Error Value: White=0.13 (very precise) /Black=0.46.  Loses game:     	---       	Black=1      Mistake:       	White=1     	---        Inaccurate:     	White=1     	Black=1      OK:         	White=8     	Black=9      Best:        	---       	Black=1      Strong:       	White=1     	---} 1-0

[Event "Polish University-ch Teams 2024"]
[Site "Lublin"]
[Date "2024.02.24"]
[Round "2.7"]
[White "Baum, Jonasz"]
[Black "Zaleski, Lukasz"]
[Result "1-0"]
[ECO "C02"]
[WhiteElo "2400"]
[BlackElo "2182"]
[Annotator "TA"]
[PlyCount "79"]
[EventDate "2024.02.22"]
[EventType "team-tourn"]
[EventCountry "POL"]
[SourceTitle "playchess.com"]
[Source "ChessBase"]
[SourceQuality "1"]
[TimeControl "900+5"]

{[%evp 14,79,18,12,16,0,0,0,35,31,45,55,83,82,68,83,72,75,63,45,55,55,99,82,127,0,0,0,0,0,28,38,123,102,97,26,233,190,159,55,70,45,192,192,177,189,209,203,352,226,451,450,587,558,586,643,954,636,635,738,725,671,1113,1111,12843,799,1221,798]} 1. d4 {[%emt 0:00:01]} e6 {[%emt 0:00:02]} 2. e4 {[%emt 0:00:05]} d5 {[%emt 0:00:01]} 3. e5 {[%emt 0:00:01]} c5 {[%emt 0:00:01]} 4. c3 {[%emt 0:00:00]} Qb6 {[%emt 0:00:02]} 5. Nf3 {[%emt 0:00:07]} Nc6 {[%emt 0:00:01]} 6. Na3 {[%emt 0:00:01]} cxd4 {[%emt 0:01:09]} 7. cxd4 {[%emt 0:00:01]} Bd7 {[%emt 0:00:59]} 8. Nc2 {[%emt 0:00:19]} Rc8 {[%emt 0:00:20]} 9. Be2 {[%emt 0:00:09]} Nge7 {[%emt 0:02:47]} 10. O-O {[%emt 0:00:41]} Ng6 {[%emt 0:01:13] The position is equal.} 11. h4 {[%emt 0:00:27][%cal Bh2h4,Bh4h5,Bh5h6][%mdl 32]} Be7 {[%emt 0:04:10]} 12. g3 {[%emt 0:00:17]} O-O {[%emt 0:01:36]} 13. h5 {[%emt 0:00:27]} Nh8 {[%emt 0:00:02]} 14. h6 {[%emt 0:00:01]} g6 {[%emt 0:00:14]} 15. Ne3 {[%emt 0:02:27]} f6 {[%emt 0:00:48]} 16. exf6 {[%emt 0:00:19]} Bxf6 {[%emt 0:00:03]} 17. Ng4 {[%emt 0:00:01]} Bxd4 {[%emt 0:00:56]} 18. Nxd4 {[%emt 0:00:16]} Qxd4 {[%emt 0:00:44]} 19. Bd2 {[%emt 0:01:36]} ({White should play} 19. Be3 $16 Qxd1 20. Rfxd1 (20. Raxd1 Rf5 $16)) 19... Ne5 $11 {[%emt 0:01:25]} 20. Nxe5 {[%emt 0:01:27]} Qxe5 {[%emt 0:00:01]} 21. Bc3 {[%emt 0:00:01]} Rxc3 {[%emt 0:00:06]} 22. bxc3 {[%emt 0:00:01]} Qxc3 {[%emt 0:00:01]} (22... Nf7 $1 $14) 23. Rc1 {[%emt 0:01:18]} Qe5 {[%emt 0:00:01]} 24. Re1 {[%emt 0:00:02]} ({Better is} 24. Bg4 $16 {Re1 would now be deadly.} Nf7 25. Qe1) 24... Nf7 $2 {[%emt 0:00:13] [#]} (24... Qf6 $1 $11 {and Black stays safe.} 25. Rf1 Nf7) 25. Bb5 $1 $36 {[%emt 0:01:30][%mdl 2560] White is on the roll.} Qd6 {[%emt 0:00:03] [#]} 26. Bxd7 {[%emt 0:00:01]} (26. Qa4 $1 $16 Bxb5 27. Qxb5) 26... Qxd7 $14 {[%emt 0:00:01]} 27. Qg4 {[%emt 0:00:03] White is more active.} Nxh6 {[%emt 0:00:15]} ({Black should try} 27... Nd8 $14) 28. Qxe6+ $18 {[%emt 0:00:02]} Qxe6 {[%emt 0:00:01]} 29. Rxe6 $14 {[%emt 0:00:02][%mdl 4096] Endgame. KRR-KRN} Nf5 {[%emt 0:00:08][%cal Bh6f5,Bf5h4,Bh4f3][%mdl 32] Against Re7} 30. Rc7 {[%emt 0:00:19][%mdl 1024] White has strong compensation.} d4 {[%emt 0:00:05]} (30... Rf7 $142 31. Re8+ Kg7) 31. Rd7 {[%emt 0:00:18]} Rc8 $2 {[%emt 0:00:05]} (31... Rf7 32. Re8+ Kg7) 32. g4 $18 {[%emt 0:00:39] White is clearly winning.} ({But not} 32. Rxb7 Rd8 33. Kf1 (33. Rxa7 d3 $11) 33... d3 $18) 32... Nh4 {[%emt 0:00:03]} 33. Ree7 {[%emt 0:00:02] Hoping for Rg7+.} Nf3+ {[%emt 0:00:06]} 34. Kg2 {[%emt 0:00:02] Black must now prevent Rg7+.} Ng5 {[%emt 0:00:01]} 35. Rxd4 {[%emt 0:00:07]} Rf8 {[%emt 0:00:10]} 36. f4 {[%emt 0:00:11]} Nf7 {[%emt 0:00:12]} 37. Rxb7 {[%emt 0:00:07]} a5 {[%emt 0:00:05]} 38. Rdd7 {[%emt 0:00:07] Strongly threatening g5.} a4 {[%emt 0:00:00]} 39. Ra7 {[%emt 0:04:45]} (39. g5 $142 Kg7 40. Ra7) 39... a3 40. Rxa3 {[%emt 0:00:00] Weighted Error Value: White=0.37/Black=0.67.  Loses game:     	---       	Black=1      Mistake:       	White=3     	Black=4      Inaccurate:     	White=2     	Black=7      OK:         	White=9     	Black=6      Best:        	White=4     	---        Brilliant:      	White=1     	---} 1-0